bitfinex/quotes_SOLUSD_20250830
["timestamp","ask_amount","ask_price","bid_price","bid_amount"]
[1756525171966,30.55862884,206.89,206.88,42.08]
[1756525172676,31.21862884,206.89,206.88,42.08]
[1756525172882,30.55862884,206.89,206.86,4.83418737]
[1756525173079,26.0,206.89,206.87,42.74]
[1756525173582,30.55862884,206.89,206.87,42.04]
[1756525173792,0.66,206.88,206.8,0.7]
[1756525173970,4.55862884,206.85,206.81,4.83535612]
[1756525174182,5.21862884,206.84,206.79,9.39427873]
[1756525174370,4.55862884,206.83,206.8,40.1]
[1756525174570,5.21862884,206.84,206.8,40.1]
[1756525175086,4.55862884,206.83,206.81,41.98]
[1756525175298,5.21862884,206.82,206.78,0.03]
[1756525175469,4.55862884,206.79,206.78,0.03]
[1756525175669,30.55862884,206.79,206.78,41.97]
[1756525176183,5.21862884,206.79,206.78,0.03]
[1756525176385,18.81422285,206.79,206.78,0.03]
[1756525176586,26.88691788,206.79,206.78,41.95]
[1756525177387,23.65004663,206.79,206.78,41.95]
[1756525177707,26.88737748,206.79,206.78,0.03]
[1756525177987,26.88737748,206.79,206.78,41.91]
[1756525178691,27.02953905,206.79,206.78,0.03]
[1756525178990,26.0,206.76,206.75,0.03]
[1756525179306,47.53371527,206.76,206.75,0.03]
[1756525179529,0.14216157,206.74,206.73,0.03]
[1756525179801,21.53371527,206.74,206.73,30.53]
[1756525179997,22.19371527,206.74,206.73,30.53]
[1756525180793,27.03070859,206.74,206.73,30.53]
[1756525181399,22.0515537,206.74,206.73,30.53]
[1756525181563,7.79595969,206.74,206.73,30.53]
[1756525181764,13.29295301,206.74,206.73,41.81]
[1756525183296,17.99374342,206.74,206.68,0.03]
[1756525183498,17.99374342,206.74,206.7,0.03]
[1756525183499,39.73775558,206.71,206.7,0.03]
[1756525183815,42.97508643,206.71,206.7,0.03]
[1756525183987,43.63508643,206.71,206.7,0.03]
[1756525184183,62.09149502,206.71,206.7,0.03]
[1756525184391,58.18371443,206.71,206.7,0.03]
[1756525184680,67.30097211,206.71,206.7,0.03]
[1756525185536,72.13866743,206.71,206.7,0.03]
[1756525186687,72.13866743,206.71,206.68,41.85]
[1756525186688,13.73775558,206.7,206.68,0.03]
[1756525186894,39.59559401,206.65,206.64,34.84]
[1756525187107,22.04794608,206.65,206.64,34.96]
[1756525187500,18.81422285,206.65,206.64,34.96]
[1756525188608,26.0,206.62,206.59,0.7]
[1756525188812,30.55862884,206.62,206.61,41.71]
[1756525189318,4.55862884,206.62,206.61,42.41]
[1756525189541,30.55862884,206.62,206.61,42.41]
[1756525189996,26.0,206.62,206.61,42.41]
[1756525190395,30.55862884,206.62,206.61,42.41]
[1756525191446,30.55862884,206.62,206.61,41.67]
[1756525191645,30.55862884,206.62,206.61,0.03]
[1756525191848,30.55862884,206.62,206.61,41.61]
[1756525194629,35.39843137,206.62,206.61,41.61]
[1756525197140,35.39843137,206.62,206.61,0.03]
[1756525197442,35.39843137,206.62,206.61,41.45]
[1756525199342,30.55862884,206.62,206.61,41.45]
[1756525200125,26.0,206.62,206.61,41.45]
[1756525200329,30.55862884,206.62,206.61,41.45]
[1756525200529,26.0,206.62,206.61,42.15]
[1756525200735,4.55862884,206.62,206.61,42.15]
[1756525201459,4.55862884,206.62,206.61,0.03]
[1756525201460,22.99402538,206.62,206.61,0.03]
[1756525201671,39.59559401,206.59,206.58,0.03]
[1756525201842,44.15422285,206.59,206.58,41.31]
[1756525202149,44.86422285,206.59,206.58,41.31]
[1756525202946,49.70472819,206.59,206.58,41.31]
[1756525203136,48.99472819,206.59,206.58,41.31]
[1756525204236,63.55041519,206.59,206.58,41.31]
[1756525204624,48.99472819,206.59,206.58,41.31]
[1756525204829,63.55041619,206.59,206.58,41.31]
[1756525205339,64.40257776,206.59,206.58,0.03]
[1756525205545,13.59559401,206.54,206.53,0.03]
[1756525205844,18.15422285,206.54,206.53,28.47]
[1756525206753,22.9959,206.54,206.53,28.47]
[1756525207660,22.9959,206.54,206.53,0.03]
[1756525207858,26.0,206.52,206.51,41.15]
[1756525208059,44.15422285,206.52,206.51,41.15]
[1756525208247,30.55862884,206.52,206.51,41.84]
[1756525209363,44.15422285,206.52,206.51,41.15]
[1756525209605,48.85501326,206.52,206.51,0.03]
[1756525209858,54.40715929,206.52,206.51,0.03]
[1756525210352,0.14216157,206.51,206.49,41.08]
[1756525210662,13.73775558,206.49,206.44,0.03]
[1756525210835,4.55862884,206.45,206.44,0.03]
[1756525211359,30.55862884,206.45,206.44,0.03]
[1756525211532,30.55862884,206.45,206.44,0.72]
[1756525212159,30.55862884,206.45,206.44,0.03]
[1756525212855,35.40241668,206.45,206.44,0.03]
[1756525213052,48.99801069,206.45,206.44,0.03]
[1756525214969,53.06432333,206.45,206.44,0.03]
[1756525215151,49.14017226,206.45,206.44,0.03]
[1756525215350,53.06633593,206.45,206.44,0.03]
[1756525215567,52.35633593,206.45,206.44,0.03]
[1756525215768,53.06633593,206.45,206.44,0.03]
[1756525215976,47.79770709,206.45,206.44,0.03]
[1756525216296,53.06633593,206.45,206.44,0.03]
[1756525217777,13.59559401,206.42,206.41,0.03]
[1756525217951,26.07117693,206.42,206.41,0.03]
[1756525218148,131.54,206.43,206.41,0.72]
[1756525218371,3.21895577,206.42,206.41,0.72]
[1756525218571,4.55862884,206.42,206.41,0.03]
[1756525218977,131.54,206.43,206.41,0.03]
[1756525219159,13.59559401,206.47,206.41,0.72]
[1756525219355,4.55862884,206.45,206.41,0.72]
[1756525219588,26.0,206.46,206.41,5.27862884]
[1756525219790,18.15422285,206.47,206.42,0.69]
[1756525220084,4.55862884,206.48,206.43,4.55862884]
[1756525220380,26.0,206.45,206.44,0.69]
[1756525220755,30.55862884,206.47,206.44,0.69]
[1756525220951,3.22330494,206.46,206.44,0.69]
[1756525221182,26.0,206.45,206.42,4.55862884]
[1756525221381,30.55862884,206.45,206.41,0.03]
[1756525221889,26.0,206.43,206.42,0.69]
[1756525222065,26.0,206.43,206.41,0.03]
[1756525222066,7.78413228,206.43,206.41,0.03]
[1756525222261,7.78413228,206.42,206.41,0.03]
[1756525222457,7.78413228,206.42,206.41,0.72]
[1756525222760,29.22550344,206.42,206.41,0.72]
[1756525223160,38.62862409,206.42,206.41,0.72]
[1756525223357,38.62862409,206.42,206.41,0.03]
[1756525223557,33.78413228,206.42,206.41,0.72]
[1756525223758,7.78413228,206.42,206.41,0.72]
[1756525224375,3.22550344,206.42,206.41,0.72]
[1756525224685,7.78413228,206.42,206.41,0.03]
[1756525224857,7.78413228,206.42,206.41,0.72]
[1756525225266,3.22550344,206.42,206.41,0.72]
[1756525226961,29.22550344,206.42,206.41,0.72]
[1756525228285,26.9342181,206.42,206.41,0.03]
[1756525228470,27.07637967,206.42,206.41,0.03]
[1756525228668,7.78413228,206.42,206.41,25.54]
[1756525228860,3.22550344,206.42,206.41,25.54]
[1756525229262,29.22550344,206.43,206.41,25.54]
[1756525229465,3.23177059,206.42,206.41,25.54]
[1756525229791,48.09599344,206.42,206.41,0.03]
[1756525230158,47.38599344,206.42,206.41,0.03]
[1756525230779,48.09599344,206.42,206.41,0.03]
[1756525231178,53.08264682,206.42,206.41,0.03]
[1756525233391,52.23048525,206.42,206.41,0.03]
[1756525235203,33.79039943,206.42,206.41,0.74]
[1756525235487,3.23177059,206.42,206.41,0.03]
[1756525235691,6.50098984,206.42,206.41,0.03]
[1756525235881,30.55862884,206.42,206.41,0.03]
[1756525237282,35.40312065,206.42,206.41,0.03]
[1756525238572,26.0,206.42,206.41,0.03]
[1756525238973,30.55862884,206.42,206.41,0.03]
[1756525239296,4.55862884,206.42,206.41,0.03]
[1756525240101,35.40312065,206.42,206.41,0.03]
[1756525240286,38.64071959,206.42,206.41,0.03]
[1756525242110,52.37847517,206.42,206.41,0.03]
[1756525242274,53.09847517,206.42,206.41,0.03]
[1756525242595,55.04093017,206.42,206.41,0.03]
[1756525244498,59.09250242,206.42,206.41,0.03]
[1756525245674,13.73775558,206.41,206.4,0.03]
[1756525245878,26.14216157,206.39,206.38,0.03]
[1756525246186,33.93838935,206.39,206.38,0.03]
[1756525246392,50.19681536,206.39,206.38,0.03]
[1756525246792,13.73775558,206.38,206.36,0.03]
[1756525246982,26.37964891,206.37,206.36,0.03]
[1756525247411,27.09964891,206.37,206.36,0.03]
[1756525247621,13.73775558,206.36,206.35,0.2]
[1756525247784,13.73775558,206.36,206.35,1e-08]
[1756525247785,26.97546019,206.36,206.35,1e-08]
[1756525248107,27.69546019,206.36,206.35,1e-08]
[1756525249110,32.54136055,206.36,206.35,1e-08]
[1756525249805,47.11543255,206.36,206.35,1e-08]
[1756525250380,46.39543255,206.36,206.35,1e-08]
[1756525250596,36.25316531,206.36,206.35,1e-08]
[1756525250811,30.29868368,206.36,206.35,0.71000001]
[1756525251231,30.29868368,206.36,206.35,1e-08]
[1756525252302,26.23772215,206.36,206.35,1e-08]
[1756525252612,30.29868368,206.36,206.35,1e-08]
[1756525253308,27.09988372,206.36,206.35,1e-08]
[1756525254886,47.09988372,206.36,206.35,1e-08]
[1756525256108,16.33145021,206.36,206.31,41.08]
[1756525256315,7.79622778,206.35,206.32,0.71]
[1756525256508,3.23759894,206.34,206.32,0.71]
[1756525256713,3.23759894,206.33,206.32,0.71]
[1756525257006,26.0,206.33,206.32,0.71]
[1756525257182,3.23759894,206.33,206.32,0.71]
[1756525257386,26.0,206.33,206.32,0.71]
[1756525257590,29.23759894,206.33,206.32,0.71]
[1756525258514,26.0,206.33,206.32,0.71]
[1756525258905,26.0,206.34,206.32,0.71]
[1756525259413,26.0,206.35,206.32,0.71]
[1756525259592,3.24981137,206.34,206.32,0.71]
[1756525260896,29.24981137,206.34,206.32,0.71]
[1756525261109,26.0,206.34,206.32,0.71]
[1756525261318,0.06,206.37,206.33,4.55862884]
[1756525261619,3.30931951,206.37,206.34,0.67]
[1756525261819,0.06,206.37,206.34,0.67]
[1756525262186,26.0,206.35,206.34,0.67]
[1756525262390,26.0,206.36,206.34,0.67]
[1756525262818,26.0,206.36,206.35,41.08]
[1756525263024,0.06,206.37,206.35,0.67]
[1756525263200,29.30927817,206.37,206.36,41.75]
[1756525263513,29.30940054,206.37,206.36,0.67]
[1756525263821,29.30940054,206.37,206.36,41.75]
[1756525267009,30.84636008,206.35,206.3,0.03]
[1756525267305,26.0,206.32,206.31,41.06]
[1756525267511,13.59559401,206.31,206.3,0.03]
[1756525267702,21.54909809,206.31,206.3,0.03]
[1756525267903,22.25909809,206.31,206.3,0.03]
[1756525268103,36.83033909,206.31,206.3,0.03]
[1756525268702,41.67741388,206.31,206.3,0.03]
[1756525268913,46.23604272,206.31,206.3,0.03]
[1756525269217,50.14265889,206.31,206.3,0.03]
[1756525270103,13.73775558,206.3,206.28,1e-08]
[1756525270323,47.40693652,206.29,206.28,1e-08]
[1756525270520,22.11693652,206.29,206.28,1e-08]
[1756525270825,26.96448123,206.29,206.28,1e-08]
[1756525271228,26.25448123,206.29,206.28,1e-08]
[1756525271607,26.96448123,206.29,206.28,1e-08]
[1756525272815,26.96448123,206.29,206.23,0.67]
[1756525272816,4.84871993,206.24,206.2,0.2]
[1756525273023,3.25271367,206.23,206.2,0.87]
[1756525273213,26.0,206.22,206.21,0.67]
[1756525273905,30.55862884,206.22,206.21,0.67]
[1756525274313,4.55862884,206.22,206.21,0.67]
[1756525275230,0.14216157,206.21,206.2,0.2]
[1756525275426,7.94928426,206.21,206.2,0.2]
[1756525275829,3.39065542,206.21,206.2,0.2]
[1756525276011,7.94928426,206.21,206.2,0.2]
[1756525276212,12.7987096,206.21,206.2,0.2]
[1756525276731,26.0,206.13,206.11,0.87]
[1756525276906,4.55862884,206.12,206.11,0.87]
[1756525278730,26.0,206.15,206.11,0.87]
[1756525279043,4.55862884,206.13,206.12,0.67]
[1756525279215,4.55862884,206.13,206.11,0.2]
[1756525279614,26.71,206.15,206.11,0.2]
[1756525279830,4.55862884,206.14,206.12,0.67]
[1756525280133,39.59559401,206.17,206.13,0.67]
[1756525280525,39.59559401,206.17,206.11,0.87]
[1756525281126,26.0,206.12,206.11,0.2]
[1756525281723,26.0,206.12,206.11,0.87]
[1756525281929,4.55862884,206.14,206.11,0.87]
[1756525282241,26.0,206.12,206.11,41.26]
[1756525282951,26.0,206.12,206.11,41.93]
[1756525283237,4.85110621,206.14,206.11,41.93]
[1756525283440,26.0,206.12,206.11,41.93]
[1756525285951,14.58541,206.2,206.11,46.48862884]
[1756525286129,26.0,206.17,206.12,5.22862884]
[1756525286324,26.0,206.17,206.13,5.22862884]
[1756525286523,26.0,206.16,206.14,0.67]
[1756525286925,26.0,206.16,206.11,45.81862884]
[1756525287124,26.0,206.16,206.12,0.67]
[1756525287340,4.55862884,206.17,206.12,5.22862884]
[1756525287525,9.40923031,206.16,206.13,0.67]
[1756525287719,26.0,206.14,206.13,0.67]
[1756525288116,26.0,206.14,206.11,41.26]
[1756525288333,4.55862884,206.14,206.11,41.93]
[1756525288542,26.0,206.13,206.12,41.06]
[1756525288746,30.55862884,206.13,206.12,41.06]
[1756525289035,26.0,206.13,206.12,41.06]
[1756525289238,30.55862884,206.13,206.12,41.06]
[1756525289622,26.0,206.13,206.12,41.06]
[1756525289830,26.0,206.13,206.12,41.73]
[1756525290623,26.0,206.16,206.12,46.28862884]
[1756525290835,26.0,206.16,206.13,5.22862884]
[1756525291014,26.0,206.16,206.14,5.27862884]
[1756525291219,4.55862884,206.21,206.15,4.55862884]
[1756525291419,132.28,206.26,206.18,4.55862884]
[1756525291420,13.59559401,206.25,206.18,4.55862884]
[1756525291651,26.0,206.22,206.19,41.78]
[1756525291949,0.06,206.2,206.19,41.06]
[1756525292431,0.06,206.2,206.19,41.78]
[1756525292749,0.06,206.2,206.19,46.33862884]
[1756525293924,0.06,206.2,206.19,41.78]
[1756525294465,0.06,206.2,206.19,41.06]
[1756525294676,0.06,206.2,206.16,0.72]
[1756525294948,0.06,206.2,206.19,41.06]
[1756525295144,0.06,206.2,206.17,0.72]
[1756525295447,0.06,206.2,206.18,41.78]
[1756525295659,30.55862884,206.19,206.18,41.06]
[1756525296035,0.06,206.2,206.13,0.72]
[1756525296036,26.0,206.18,206.13,0.72]
[1756525296230,30.55862884,206.18,206.14,41.78]
[1756525296431,30.55862884,206.18,206.15,0.72]
[1756525296844,30.55862884,206.18,206.12,5.27862884]
[1756525297045,30.55862884,206.18,206.13,41.04]
[1756525297259,4.55862884,206.17,206.14,0.72]
[1756525297756,4.55862884,206.17,206.13,41.04]
[1756525298146,4.55862884,206.16,206.13,41.76]
[1756525298467,4.55862884,206.15,206.13,41.04]
[1756525298639,30.55862884,206.14,206.11,0.92]
[1756525298842,4.55862884,206.13,206.12,41.04]
[1756525299248,9.40994913,206.13,206.12,41.04]
[1756525299562,4.55862884,206.13,206.12,41.04]
[1756525300453,4.55862884,206.13,206.11,0.2]
[1756525300454,26.0,206.12,206.11,0.2]
[1756525300646,30.55862884,206.12,206.11,41.24]
[1756525301060,35.41017163,206.12,206.11,41.24]
[1756525301672,26.0,206.16,206.11,41.96]
[1756525301847,30.55862884,206.12,206.11,41.24]
[1756525302470,26.0,206.12,206.11,41.24]
[1756525303865,26.0,206.12,206.11,41.96]
[1756525305972,4.55862884,206.14,206.11,41.96]
[1756525306656,26.0,206.15,206.12,0.72]
[1756525306858,4.55862884,206.14,206.12,0.72]
[1756525307956,4.55862884,206.14,206.11,41.24]
[1756525308269,4.55862884,206.13,206.11,41.96]
[1756525308769,4.55862884,206.13,206.11,41.24]
[1756525308951,30.55862884,206.12,206.11,41.24]
[1756525309960,4.55862884,206.13,206.11,41.24]
[1756525310864,18.15422285,206.12,206.11,0.2]
[1756525311064,18.15422285,206.12,206.11,41.22]
[1756525311245,13.59559401,206.12,206.11,41.22]
[1756525311444,7.81430803,206.12,206.11,41.22]
[1756525312171,30.55862884,206.12,206.11,41.22]
[1756525312366,33.81681083,206.12,206.11,41.22]
[1756525313750,3.25818199,206.12,206.11,41.94]
[1756525313970,4.55862884,206.18,206.11,51.35040701]
[1756525314269,4.85010621,206.19,206.11,51.35040701]
[1756525314270,26.0,206.16,206.12,0.72]
[1756525314472,26.0,206.16,206.13,0.72]
[1756525314771,26.0,206.16,206.14,0.72]
[1756525314974,26.0,206.16,206.15,41.02]
[1756525315147,4.55862884,206.17,206.15,41.02]
[1756525315573,29.26039597,206.16,206.15,41.02]
[1756525316378,29.26039597,206.16,206.15,41.74]
[1756525319375,29.26284103,206.16,206.15,41.74]
[1756525319553,3.26284103,206.16,206.15,41.74]
[1756525319878,26.0,206.16,206.15,41.74]
[1756525320054,29.26284103,206.16,206.15,41.74]
[1756525321074,26.0,206.18,206.15,46.29862884]
[1756525321256,26.0,206.18,206.15,41.74]
[1756525321456,26.0,206.18,206.16,0.65]
[1756525321772,26.0,206.17,206.15,4.55862884]
[1756525321970,26.0,206.17,206.16,40.98]
[1756525322209,26.06,206.2,206.16,46.18862884]
[1756525322366,3.26199279,206.19,206.17,5.20862884]
[1756525322553,3.26199279,206.19,206.18,0.65]
[1756525322753,29.26199279,206.19,206.18,0.65]
[1756525323366,26.0,206.19,206.18,0.65]
[1756525323687,26.06,206.2,206.18,5.20862884]
[1756525323986,26.06,206.2,206.19,41.63]
[1756525324853,0.06,206.2,206.19,41.63]
[1756525326186,0.06,206.2,206.19,46.47989572]
[1756525326765,0.06,206.2,206.19,51.03852456]
[1756525327062,0.06,206.2,206.19,46.47989572]
[1756525327283,0.06,206.2,206.19,40.96]
[1756525329597,4.61862884,206.2,206.19,40.96]
[1756525329776,26.0,206.19,206.14,4.55862884]
[1756525329976,26.0,206.19,206.15,41.61]
[1756525330467,26.0,206.18,206.15,41.61]
[1756525330679,30.55862884,206.18,206.15,0.65]
[1756525330860,30.55862884,206.18,206.16,40.96]
[1756525331567,26.0,206.18,206.16,40.96]
[1756525331965,165.41906163,206.17,206.13,0.03]
[1756525332172,26.0,206.15,206.14,40.94]
[1756525339380,157.6,206.14,206.13,0.03]
[1756525339579,165.42180209,206.14,206.13,40.95]
[1756525339990,166.08180209,206.14,206.13,40.95]
[1756525340585,165.42180209,206.14,206.13,40.95]
[1756525341388,33.82180209,206.14,206.13,40.95]
[1756525342273,33.82180209,206.14,206.13,0.03]
[1756525342473,33.82180209,206.14,206.13,40.93]
[1756525343292,48.0773961,206.14,206.13,40.93]
[1756525343495,52.92846818,206.14,206.13,40.93]
[1756525343704,48.0773961,206.14,206.13,0.03]
[1756525344203,47.4173961,206.14,206.13,0.03]
[1756525344498,33.82180209,206.14,206.13,0.03]
[1756525344679,3.26317325,206.14,206.13,0.03]
[1756525345286,29.26317325,206.14,206.13,0.03]
[1756525345680,29.26317325,206.14,206.13,0.68]
[1756525346685,29.26317325,206.14,206.13,0.03]
[1756525346885,29.26317325,206.14,206.13,0.68]
[1756525348205,48.36983934,206.14,206.13,0.03]
[1756525348505,21.4173961,206.14,206.13,0.03]
[1756525348678,3.26317325,206.14,206.13,0.03]
[1756525349803,12.67287417,206.14,206.13,0.03]
[1756525351220,52.98846818,206.14,206.13,40.91]
[1756525351400,27.13062975,206.14,206.13,0.03]
[1756525351600,17.85213025,206.14,206.13,0.71]
[1756525351983,29.26317325,206.14,206.13,0.71]
[1756525352184,8.68086907,206.2,206.13,5.26862884]
[1756525352487,3.26446344,206.19,206.15,4.55862884]
[1756525352697,0.06,206.2,206.16,41.56]
[1756525352698,3.26446344,206.18,206.16,41.56]
[1756525352885,0.06,206.2,206.16,40.88]
[1756525352886,29.26446344,206.19,206.16,40.88]
[1756525353198,3.26446344,206.18,206.17,0.68]
[1756525353408,3.26446344,206.18,206.16,40.88]
[1756525353997,29.26446344,206.18,206.16,40.88]
[1756525354204,26.0,206.18,206.16,40.88]
[1756525354411,26.0,206.18,206.17,0.68]
[1756525356195,26.0,206.18,206.16,40.88]
[1756525356399,26.0,206.18,206.16,41.56]
[1756525356605,26.0,206.17,206.16,40.88]
[1756525356909,26.0,206.18,206.16,40.88]
[1756525357291,3.26460327,206.17,206.16,40.88]
[1756525357893,3.26460327,206.17,206.16,40.86]
[1756525358113,3.98460327,206.17,206.16,40.86]
[1756525358316,3.26460327,206.17,206.16,40.86]
[1756525358611,8.11496947,206.17,206.16,40.86]
[1756525360021,139.71496947,206.17,206.16,40.86]
[1756525363095,26.0,206.14,206.13,0.03]
[1756525363295,29.26460327,206.14,206.13,40.87]
[1756525364518,34.11567535,206.14,206.13,40.87]
[1756525365317,3.26460327,206.14,206.13,46.10862884]
[1756525365635,26.0,206.15,206.13,46.10862884]
[1756525365849,26.0,206.15,206.13,45.42862884]
[1756525366030,26.0,206.15,206.14,0.68]
[1756525366942,4.85012937,206.19,206.14,5.23862884]
[1756525367144,134.86546455,206.18,206.15,5.23862884]
[1756525367454,134.86546455,206.18,206.13,40.87]
[1756525367455,3.26546455,206.17,206.16,41.5]
[1756525368855,8.11583075,206.17,206.16,41.5]
[1756525369871,3.26546455,206.17,206.16,41.5]
[1756525370148,3.26546455,206.17,206.16,40.82]
[1756525370326,3.26546455,206.17,206.16,41.5]
[1756525372452,3.26546455,206.17,206.16,40.82]
[1756525373040,3.26546455,206.17,206.16,41.5]
[1756525376848,3.26546455,206.17,206.16,40.82]
[1756525377551,3.26546455,206.17,206.16,41.5]
[1756525379825,3.26855995,206.17,206.16,41.5]
[1756525380229,3.26855995,206.17,206.16,40.82]
[1756525380652,3.26855995,206.17,206.16,41.5]
[1756525384343,3.26855995,206.17,206.16,41.53]
[1756525384543,13.32755499,206.17,206.16,40.85]
[1756525384746,7.82718879,206.17,206.16,40.85]
[1756525385063,8.11892615,206.17,206.16,40.85]
[1756525386444,8.11892615,206.17,206.16,0.03]
[1756525386649,30.55594942,206.17,206.16,0.03]
[1756525386846,26.13948215,206.17,206.16,0.03]
[1756525387176,26.13948215,206.17,206.13,0.03]
[1756525387177,39.59559401,206.14,206.13,40.75]
[1756525387336,51.05558322,206.14,206.13,40.75]
[1756525387538,29.26855995,206.14,206.13,46.01862884]
[1756525387967,29.26855995,206.14,206.13,41.46]
[1756525394572,52.92385488,206.14,206.13,0.03]
[1756525394872,26.92385488,206.14,206.13,0.03]
[1756525395174,28.86876488,206.14,206.13,0.03]
[1756525395344,54.86876488,206.14,206.13,0.03]
[1756525395545,32.95532958,206.14,206.13,0.03]
[1756525395947,54.86876488,206.14,206.13,0.03]
[1756525396267,28.86876488,206.14,206.13,0.03]
[1756525396845,29.01092645,206.14,206.13,0.03]
[1756525398047,33.09749115,206.14,206.13,0.03]
[1756525399862,24.45229761,206.14,206.13,0.03]
[1756525400161,29.01092645,206.14,206.13,0.03]
[1756525400367,33.09654353,206.14,206.13,0.03]
[1756525401769,145.19559401,206.12,206.11,0.2]
[1756525402065,157.10839988,206.12,206.11,0.2]
[1756525402254,157.75839988,206.12,206.11,0.2]
[1756525402456,159.70387788,206.12,206.11,0.2]
[1756525403277,155.91117475,206.12,206.11,0.2]
[1756525403461,160.46980359,206.12,206.11,0.2]
[1756525404148,164.55542067,206.12,206.11,0.2]
[1756525404348,159.96196516,206.12,206.11,0.2]
[1756525407369,28.36196516,206.12,206.11,0.2]
[1756525407751,54.36196516,206.12,206.11,0.2]
[1756525407969,29.01196516,206.12,206.11,0.2]
[1756525409066,29.01196516,206.12,206.1,0.03]
[1756525409067,13.73775558,206.11,206.1,0.03]
[1756525409370,21.56494437,206.11,206.1,0.03]
[1756525409666,22.21494437,206.11,206.1,0.03]
[1756525409869,26.0,206.01,205.98,34.98]
[1756525410168,26.0,206.01,205.98,40.62]
[1756525410674,26.0,206.01,205.99,0.71]
[1756525411079,26.0,206.0,205.99,0.71]
[1756525411749,26.0,206.01,205.99,0.71]
[1756525412677,26.0,206.01,206.0,0.71]
[1756525412855,26.0,206.07,206.0,5.26862884]
[1756525413054,30.55862884,206.07,206.02,4.55862884]
[1756525413254,30.55862884,206.07,206.03,0.71]
[1756525413852,26.0,206.06,206.03,0.71]
[1756525414051,30.55862884,206.06,206.03,0.71]
[1756525414675,30.55862884,206.06,205.82,103.89289939]
[1756525414676,26.0,206.02,205.9,25.73685907]
[1756525414860,30.55862884,206.03,206.01,0.71]
[1756525415372,30.55862884,206.03,206.02,0.71]
[1756525415773,35.41229092,206.03,206.02,0.71]
[1756525416154,35.41229092,206.03,206.0,40.6]
[1756525416353,26.0,205.98,205.93,0.71]
[1756525416577,4.55862884,205.97,205.93,0.71]
[1756525417080,45.15610384,205.98,205.93,0.71]
[1756525417775,45.15610384,205.98,205.96,0.03]
[1756525417958,45.15610384,205.98,205.96,0.74]
[1756525419253,40.597475,205.98,205.96,0.03]
[1756525419471,4.55862884,205.97,205.96,0.03]
[1756525420254,26.0,205.97,205.96,0.03]
[1756525420454,26.0,205.97,205.96,0.74]
[1756525420455,30.55862884,205.97,205.96,0.74]
[1756525421359,30.55862884,205.97,205.96,0.03]
[1756525421582,4.55862884,205.97,205.96,0.03]
[1756525421767,9.41370482,205.97,205.96,0.03]
[1756525432684,35.41370482,205.97,205.96,0.03]
[1756525433065,9.41370482,205.97,205.96,0.03]
[1756525433491,30.85507598,205.97,205.96,0.03]
[1756525433676,35.41370482,205.97,205.96,0.03]
[1756525434678,26.0,205.97,205.96,0.03]
[1756525434884,30.55862884,205.97,205.96,0.74]
[1756525435471,13.59559401,206.01,205.96,0.74]
[1756525435472,4.85463614,205.99,205.96,0.74]
[1756525435671,4.55862884,205.98,205.96,0.74]
[1756525435872,26.0,205.97,205.96,0.74]
[1756525436279,26.0,205.98,205.96,0.74]
[1756525437283,26.0,205.98,205.96,0.03]
[1756525437483,26.0,205.98,205.97,0.71]